bitfinex/quotes_ETHUSD_20250925
["timestamp","ask_amount","ask_price","bid_price","bid_amount"]
[1758807747736,27.469087,3968.3,3968.2,0.002]
[1758807747936,2.52023297,3967.9,3967.1,0.002]
[1758807748162,27.359988,3967.8,3967.1,0.002]
[1758807748366,3.0,3967.5,3967.1,0.002]
[1758807748570,37.46982586,3967.7,3965.1,0.4817]
[1758807748571,3.0,3967.2,3965.1,0.4817]
[1758807748873,2.7589,3967.8,3965.1,0.02]
[1758807748874,3.0,3966.8,3965.1,0.02]
[1758807749043,3.0,3966.6,3965.1,2.54198541]
[1758807749374,3.0,3966.4,3965.1,0.02]
[1758807749609,3.0,3966.0,3965.1,0.02]
[1758807749827,3.0,3965.5,3965.1,0.02]
[1758807749993,21.279011,3965.4,3965.1,0.02]
[1758807750200,22.94415139,3965.4,3965.1,0.02]
[1758807750414,25.46596507,3965.4,3965.1,0.02]
[1758807750720,5.52193313,3965.3,3965.1,0.02]
[1758807750917,5.52194088,3965.2,3965.1,0.02]
[1758807751116,28.26202788,3965.2,3965.1,0.02]
[1758807751322,32.98502788,3965.2,3965.1,0.02]
[1758807752376,5.52206809,3965.0,3964.9,0.28084737]
[1758807752722,5.52206809,3965.0,3964.1,0.02]
[1758807752723,2.52257706,3964.2,3964.1,0.02]
[1758807752931,9.82,3964.2,3964.1,0.02]
[1758807753076,25.740087,3964.2,3964.1,0.02]
[1758807753425,5.153159,3964.2,3964.1,0.02]
[1758807753628,9.876159,3964.2,3964.1,0.02]
[1758807753826,17.523155,3964.2,3964.1,0.02]
[1758807753978,17.523155,3964.2,3963.1,0.4847]
[1758807753979,29.564087,3964.2,3963.1,0.023]
[1758807754179,31.877287,3964.1,3963.1,0.023]
[1758807754400,2.52309593,3963.4,3963.1,0.023]
[1758807754634,0.4308,3964.0,3963.1,0.023]
[1758807754776,0.1256,3963.8,3963.1,0.1486]
[1758807754981,3.546,3963.7,3963.1,0.1486]
[1758807755330,6.837,3963.6,3963.1,0.48681377]
[1758807755631,3.571599,3963.5,3963.1,0.1486]
[1758807755810,6.837,3963.6,3963.3,2.5231499]
[1758807755996,6.837,3963.6,3963.1,0.1486]
[1758807755997,0.2281,3964.9,3964.1,2.5226203]
[1758807756190,0.56474639,3965.4,3963.1,0.023]
[1758807756191,2.102,3964.0,3963.3,0.2484]
[1758807756390,0.6589,3965.0,3963.4,0.48693086]
[1758807756616,0.6589,3965.0,3963.1,0.023]
[1758807756617,3.0,3964.8,3963.1,0.2714]
[1758807756912,3.0,3964.6,3963.3,2.5231499]
[1758807757214,26.825187,3964.5,3963.2,0.4617]
[1758807757515,2.7609,3964.9,3963.2,2.98485128]
[1758807757516,10.476883,3964.4,3963.2,2.98485128]
[1758807757817,6.569,3965.1,3963.3,0.7101]
[1758807757818,16.084696,3964.3,3963.3,0.7101]
[1758807758018,28.928187,3964.2,3963.3,0.7101]
[1758807758316,8.986172,3964.1,3964.0,2.52270433]
[1758807758482,13.343898,3964.1,3964.0,2.52270433]
[1758807758685,11.461114,3964.1,3964.0,2.52270433]
[1758807758882,11.458417,3964.1,3963.8,2.52281467]
[1758807759106,2.102,3964.1,3963.9,2.52276798]
[1758807759384,11.467665,3964.0,3963.4,0.32562877]
[1758807759614,4.742,3963.9,3962.9,0.2484]
[1758807759787,22.081187,3963.8,3962.9,2.77179344]
[1758807759984,22.309287,3963.8,3962.4,0.4617]
[1758807760188,22.081187,3963.7,3962.8,2.52345276]
[1758807760408,4.742,3963.6,3963.0,2.5233282]
[1758807760620,4.62464506,3964.1,3963.0,2.5233282]
[1758807760621,0.2281,3964.7,3963.1,0.27763282]
[1758807760843,24.224211,3964.4,3963.1,0.023]
[1758807761021,12.626104,3964.3,3963.2,2.54844569]
[1758807761319,6.842,3964.2,3964.1,2.5226407]
[1758807761524,4.74,3964.2,3963.9,2.52276798]
[1758807761820,4.74,3964.2,3964.1,2.5226407]
[1758807762023,8.745714,3964.2,3964.1,2.5226407]
[1758807762203,15.282312,3964.2,3964.1,2.5226407]
[1758807762399,14.526563,3964.2,3964.1,2.5226407]
[1758807762599,10.056418,3964.2,3964.1,2.5226407]
[1758807762820,10.056418,3964.2,3963.0,0.4698]
[1758807763003,10.117244,3964.1,3962.7,2.5234849]
[1758807763324,4.737,3964.0,3963.9,2.52276798]
[1758807763525,4.736,3964.1,3964.0,2.52270433]
[1758807763725,2.102,3964.5,3964.4,2.5224498]
[1758807763934,6.838,3964.5,3964.4,2.5224498]
[1758807764137,0.39570688,3965.9,3964.4,0.7174]
[1758807764295,6.249797,3965.8,3964.5,0.59682058]
[1758807764491,4.735,3966.2,3964.6,0.7174]
[1758807764708,8.283557,3966.1,3966.0,2.52143217]
[1758807765043,8.283557,3966.1,3964.7,0.7174]
[1758807765044,9.38581,3966.1,3964.7,0.7174]
[1758807765345,10.523287,3966.0,3964.7,0.7174]
[1758807765527,10.523287,3966.0,3965.7,2.52157713]
[1758807765716,4.735,3966.1,3965.9,2.52149575]
[1758807765916,22.081187,3966.0,3965.9,2.52149575]
[1758807766116,22.081187,3966.0,3964.2,0.2476]
[1758807766117,10.893468,3966.0,3964.2,0.2476]
[1758807766317,19.869956,3965.9,3965.4,2.52176001]
[1758807766511,0.1256,3965.7,3965.0,0.1256]
[1758807766711,19.322127,3965.6,3965.5,2.52175009]
[1758807766939,6.837,3965.8,3964.8,2.52215053]
[1758807767145,7.103919,3965.7,3964.4,0.4698]
[1758807767342,7.103919,3965.7,3965.1,2.52194277]
[1758807767510,7.103919,3965.7,3963.9,0.4698]
[1758807767715,0.4292,3965.6,3963.9,2.52276798]
[1758807767910,12.985483,3965.5,3963.9,2.52276798]
[1758807768110,2.581591,3965.4,3965.1,2.52199958]
[1758807768444,2.581591,3965.4,3965.0,2.5220575]
[1758807768445,6.83,3965.3,3965.0,2.5220575]
[1758807768643,24.225753,3965.3,3964.0,0.7174]
[1758807768844,22.740187,3965.2,3964.0,0.32402291]
[1758807769020,22.081187,3965.1,3963.7,2.52289527]
[1758807769222,0.39558729,3965.6,3963.8,0.27282831]
[1758807769422,3.0,3965.4,3964.7,2.52219741]
[1758807769639,3.0,3965.4,3963.8,2.77041711]
[1758807769640,15.017622,3965.3,3963.8,0.2476]
[1758807769843,7.219658,3965.3,3963.8,0.2476]
[1758807770016,5.498205,3965.2,3963.9,0.4698]
[1758807770213,4.724,3965.1,3963.9,0.4698]
[1758807770526,4.724,3965.1,3963.8,0.2476]
[1758807770729,3.0,3964.9,3963.3,0.4698]
[1758807770942,16.061895,3964.8,3963.3,0.4698]
[1758807771146,6.822,3964.7,3964.4,2.52241739]
[1758807771334,6.822,3964.7,3963.4,2.52308623]
[1758807771546,4.718,3964.6,3964.3,2.52246904]
[1758807771718,4.718,3964.5,3964.4,2.5224498]
[1758807771919,4.719,3964.5,3964.4,2.5224498]
[1758807772347,2.52016446,3968.0,3964.3,0.02522513]
[1758807772646,0.2525,3968.7,3965.7,2.52160947]
[1758807772647,15.613993,3965.8,3965.7,2.52160947]
[1758807772838,12.638463,3965.8,3964.8,0.2476]
[1758807773012,12.638463,3965.8,3962.7,3.02632863]
[1758807773013,11.061805,3965.7,3964.4,2.5224498]
[1758807773210,9.09538,3965.7,3965.6,2.5216865]
[1758807773414,6.822,3965.8,3965.7,2.52162291]
[1758807773627,9.425463,3965.8,3965.7,2.52162291]
[1758807773829,8.970952,3965.8,3965.7,2.52162291]
[1758807774232,6.822,3965.8,3965.7,2.52162291]
[1758807774834,4.715,3965.8,3965.7,2.52162291]
[1758807775060,4.715,3965.8,3965.7,2.99142291]
[1758807775265,0.001,3966.2,3966.1,2.52136859]
[1758807775580,0.001,3966.2,3966.1,3.31336859]
[1758807775726,0.395474,3968.4,3966.1,0.02521368]
[1758807776059,6.048359,3968.3,3968.2,2.52003427]
[1758807776258,6.048359,3968.3,3966.7,2.52098721]
[1758807776259,9.676321,3968.2,3967.0,0.2476]
[1758807776459,0.2298,3969.1,3967.2,2.52066948]
[1758807776680,0.001,3969.3,3968.9,2.51958981]
[1758807776681,2.102,3969.0,3968.9,2.51958981]
[1758807776832,6.821,3969.0,3968.9,2.51958981]
[1758807777032,6.821,3969.0,3968.9,2.64518981]
[1758807777433,0.001,3969.3,3969.2,2.51939937]
[1758807777629,0.001,3969.3,3969.2,3.37218107]
[1758807777881,0.001,3969.3,3969.2,4.18998708]
[1758807778179,0.001,3969.3,3967.5,9.09047026]
[1758807778180,2.3328,3969.3,3967.8,0.2476]
[1758807778471,12.839134,3969.2,3967.6,0.2476]
[1758807778681,6.2084,3969.1,3967.6,2.76801256]
[1758807778972,4.819589,3969.0,3968.6,2.51972778]
[1758807779174,22.081187,3969.1,3968.5,2.51983114]
[1758807779373,5.889,3969.2,3968.7,2.51971164]
[1758807779374,5.239669,3969.0,3968.7,2.51971164]
[1758807779572,13.334917,3969.1,3967.6,0.2476]
[1758807779785,9.734883,3969.1,3968.8,2.51964129]
[1758807779960,5.21306,3969.0,3968.8,2.51964129]
[1758807780163,3.177094,3968.9,3968.8,2.51964129]
[1758807780361,0.001,3969.3,3969.2,2.51939937]
[1758807780548,4.718,3969.2,3969.1,2.51946285]
[1758807780742,4.718,3969.2,3968.9,2.51955106]
[1758807780743,4.718,3969.2,3968.1,0.7174]
[1758807780949,0.001,3969.3,3969.2,2.51939937]
[1758807781144,0.001,3969.3,3969.2,3.27524385]
[1758807781377,0.001,3969.7,3969.6,2.5191455]
[1758807781709,0.001,3969.7,3969.6,3.3111455]
[1758807781888,0.13034944,3972.8,3969.7,0.792]
[1758807782049,4.877897,3972.7,3970.1,2.51882824]
[1758807782393,4.877897,3972.7,3969.8,0.89353018]
[1758807782394,4.02697,3972.6,3971.1,2.51816149]
[1758807782557,22.081187,3972.5,3971.3,2.51800669]
[1758807782759,0.6733,3972.4,3971.4,0.02518003]
[1758807782960,2.77947,3971.4,3971.1,2.51814081]
[1758807783175,10.622046,3971.1,3970.1,2.51877768]
[1758807783485,4.721,3971.4,3970.2,0.673]
[1758807783795,4.721,3971.4,3969.8,0.15094]
[1758807783796,9.746333,3971.3,3969.8,0.15094]
[1758807783967,10.419633,3971.3,3969.3,2.5193359]
[1758807784160,3.0,3971.7,3969.1,0.2385]
[1758807784161,20.417347,3971.2,3969.1,0.2385]
[1758807784491,7.301241,3971.1,3969.2,0.02519399]
[1758807784700,22.080387,3971.0,3969.7,2.51903592]
[1758807784897,22.080387,3971.0,3968.6,0.2636978]
[1758807784898,3.6733,3970.9,3968.6,0.2636978]
[1758807785102,3.6733,3970.9,3968.7,0.4345]
[1758807785103,6.824,3970.8,3968.7,0.4345]
[1758807785257,6.189972,3970.7,3968.8,0.26369653]
[1758807785457,6.189972,3970.7,3968.9,2.51958981]
[1758807785699,0.6733,3970.6,3968.9,0.31925898]
[1758807785882,12.125536,3970.5,3968.9,0.31925898]
[1758807786084,22.753687,3970.4,3968.3,2.1]
[1758807786253,18.901843,3970.3,3968.2,0.2385]
[1758807786458,6.787853,3970.2,3969.7,2.51901943]
[1758807786666,6.787853,3970.2,3969.4,2.51922281]
[1758807786667,5.149531,3970.1,3969.4,2.51922281]
[1758807786888,5.119537,3970.0,3969.4,2.51926881]
[1758807787092,7.247285,3969.9,3968.3,2.51997076]
[1758807787316,3.637387,3969.9,3969.6,2.51909095]
[1758807787478,3.637387,3969.9,3968.4,2.83916561]
[1758807787479,4.686,3969.9,3969.7,0.02519082]
[1758807787672,3.0,3971.4,3968.7,0.4345]
[1758807787673,4.717,3970.0,3969.8,2.51897675]
[1758807787914,22.753687,3969.9,3968.4,0.55779708]
[1758807788205,4.717,3970.0,3968.4,0.55779708]
[1758807788206,4.715,3970.0,3969.9,0.1256]
[1758807788406,11.7843,3970.0,3969.9,0.1256]
[1758807788613,11.7843,3970.0,3969.5,0.1256]
[1758807788907,7.096617,3969.9,3969.6,2.51909746]
[1758807789106,3.39512599,3970.9,3969.9,2.51889992]
[1758807789107,0.2362,3970.4,3969.9,2.51889992]
[1758807789287,0.2362,3970.4,3968.6,2.51978027]
[1758807789288,12.464177,3970.3,3970.0,2.51888956]
[1758807789472,0.1256,3970.4,3970.2,2.51876479]
[1758807789806,0.39512599,3970.9,3969.9,2.51890908]
[1758807789807,3.76,3970.3,3969.9,2.51890908]
[1758807790013,3.76,3970.3,3968.5,2.51979976]
[1758807790014,4.4333,3970.2,3969.6,2.51909534]
[1758807790210,4.4333,3970.2,3968.4,0.75379708]
[1758807790211,0.6733,3970.1,3969.1,2.5194626]
[1758807790428,0.6733,3970.0,3968.4,0.31929708]
[1758807790577,22.753687,3970.0,3967.9,0.4345]
[1758807790779,14.637025,3969.9,3968.6,2.51976524]
[1758807791002,3.0,3969.7,3968.5,2.51983312]
[1758807791206,20.559151,3969.6,3967.9,0.4345]
[1758807791419,17.968941,3969.5,3968.7,2.51970712]
[1758807791579,22.080387,3969.4,3967.2,0.47]
[1758807791915,11.103929,3969.4,3967.2,0.47]
[1758807792122,3.0,3969.2,3966.5,0.7007]
[1758807792296,2.51989551,3968.5,3967.3,2.52060325]
[1758807792480,7.603711,3967.3,3966.0,0.7007]
[1758807792810,7.603711,3967.3,3965.7,2.52158804]
[1758807792811,6.812,3967.2,3965.7,2.52162291]
[1758807793122,4.709,3967.1,3965.8,0.72591559]
[1758807793281,4.709,3967.1,3967.0,2.52079657]
[1758807793612,4.709,3967.1,3965.9,2.75219475]
[1758807793919,0.4664,3968.3,3968.1,2.52006651]
[1758807794087,0.4664,3968.3,3966.6,2.52103765]
[1758807794088,0.2272,3968.3,3968.2,2.52003427]
[1758807794287,0.2272,3968.3,3966.6,0.7007]
[1758807794288,27.483987,3968.3,3967.9,2.52017565]
[1758807794487,3.823902,3968.2,3966.8,2.52092366]
[1758807794699,0.2272,3968.2,3968.1,2.52009777]
[1758807794903,0.2272,3968.7,3967.0,2.52079657]
[1758807795106,15.992972,3968.6,3967.7,2.52034883]
[1758807795296,15.992972,3968.6,3966.6,0.47]
[1758807795297,9.650596,3967.7,3966.7,2.52098125]
[1758807795493,14.101828,3967.6,3966.5,0.2307]
[1758807795706,8.62753,3967.5,3966.1,0.47]
[1758807796025,9.32113,3967.5,3966.7,2.52093148]
[1758807796233,4.71,3967.6,3965.4,0.2307]
[1758807796234,18.818896,3967.4,3965.4,0.2307]
[1758807796441,3.6936,3967.4,3965.4,0.2307]
[1758807796592,3.0,3967.2,3964.7,0.2307]
[1758807796791,26.787387,3967.1,3964.8,2.52219531]
[1758807796989,16.338571,3967.0,3964.8,2.52219531]
[1758807797193,7.249597,3966.9,3966.5,2.52109926]
[1758807797427,4.705,3966.9,3965.3,2.1]
[1758807797636,4.705,3966.9,3966.8,2.52092366]
[1758807797792,0.6936,3967.6,3966.0,2.52139448]
[1758807797989,0.6936,3967.6,3966.3,2.52124145]
[1758807798192,0.6936,3967.6,3965.8,0.2307]
[1758807798193,13.552993,3967.5,3966.4,0.25212415]
[1758807798464,0.39543236,3968.0,3967.2,2.52060719]
[1758807798465,6.993425,3967.4,3967.2,2.52060719]
[1758807798631,0.2272,3967.4,3967.3,2.52060595]
[1758807798834,6.815,3967.4,3967.1,2.52067584]
[1758807799041,4.25797,3967.3,3966.1,2.52136859]
[1758807799228,4.25797,3967.3,3966.2,0.27520686]
[1758807799425,4.25797,3967.3,3965.6,2.5216865]
[1758807799626,4.38357,3967.3,3966.9,2.52085061]
[1758807799848,4.38357,3967.3,3965.6,2.5216865]
[1758807799849,22.080387,3966.9,3964.9,0.27548953]
[1758807800022,0.1256,3966.5,3966.1,2.52135188]
[1758807800225,6.94298,3966.4,3965.9,0.1256]
[1758807800529,9.92598,3966.3,3965.9,0.1256]
[1758807800734,3.456705,3966.2,3965.9,0.1256]
[1758807800946,4.150305,3966.2,3965.8,2.52150139]
[1758807801141,4.714,3966.3,3964.6,0.002]
[1758807801142,6.06356,3966.1,3965.6,0.1256]
[1758807801352,13.306747,3966.0,3964.6,0.002]
[1758807801666,5.52154449,3965.9,3964.6,0.002]
[1758807801846,5.52154449,3965.9,3964.8,2.52213595]
[1758807801847,22.080387,3965.8,3964.8,2.52213595]
[1758807802152,2.52169425,3965.6,3964.6,0.002]
[1758807802364,12.687569,3965.5,3964.6,0.002]
[1758807802658,0.6936,3965.5,3964.9,2.52208269]
[1758807805448,3.0,3966.2,3964.8,2.52219531]
[1758807805672,3.112,3966.1,3964.9,0.34775268]
[1758807805839,7.293733,3966.2,3965.1,2.52199252]
[1758807806162,0.4664,3966.0,3964.9,0.34775268]
[1758807806458,0.4664,3966.0,3964.6,0.002]
[1758807806459,8.894547,3965.9,3964.6,0.002]
[1758807806668,4.9292,3965.9,3964.8,2.52219531]
[1758807806959,3.970149,3965.8,3965.6,2.52168551]
[1758807807260,0.2272,3965.9,3965.8,2.52155933]
[1758807807462,0.2272,3966.5,3965.9,2.52149081]
[1758807807660,11.653641,3966.4,3965.0,0.7007]
[1758807807832,6.804,3966.3,3966.1,2.5213671]
[1758807808036,6.804,3966.3,3965.0,0.7007]
[1758807808241,3.0,3966.1,3964.6,0.002]
[1758807808449,3.0,3965.9,3964.7,2.52225893]
[1758807808660,17.612962,3965.8,3964.6,0.002]
[1758807808858,16.35252563,3965.7,3964.6,0.002]
[1758807809026,3.0,3965.5,3964.6,0.002]
[1758807809227,3.0,3965.3,3964.6,0.002]
[1758807809430,3.0,3964.7,3964.6,0.002]
[1758807809660,29.788387,3964.7,3964.6,0.002]
[1758807809864,15.10147457,3964.7,3964.6,0.002]
[1758807810071,18.38743557,3964.7,3964.6,0.002]
[1758807810456,20.9096945,3964.7,3964.6,0.002]
[1758807810767,35.4999395,3964.7,3964.6,0.002]
[1758807811355,2.5224498,3964.4,3964.3,0.002]
[1758807811563,24.6028368,3964.4,3964.3,0.002]
[1758807811741,20.5542998,3964.4,3964.3,0.002]
[1758807811946,5.64811343,3964.3,3964.2,0.002]
[1758807812146,5.64811343,3964.3,3963.1,0.1486]
[1758807812147,2.52300943,3963.6,3963.1,0.023]
[1758807812345,3.0,3963.4,3963.1,0.023]
[1758807812577,13.24402,3963.3,3963.1,0.023]
[1758807812878,6.801,3963.2,3963.1,0.023]
[1758807813202,10.969322,3963.2,3963.1,0.023]
[1758807813342,4.697,3963.2,3963.1,2.54627723]
[1758807813542,0.2272,3963.8,3963.3,2.52314675]
[1758807813743,3.0,3963.2,3963.1,0.023]
[1758807814044,31.57765356,3963.2,3963.1,0.023]
[1758807814277,31.41313656,3963.2,3963.1,0.023]
[1758807814440,3.0,3963.1,3962.1,0.02]
[1758807814645,25.080387,3963.1,3962.1,0.02]
[1758807814870,22.773987,3963.0,3962.1,0.02]
[1758807815142,3.0,3962.8,3962.1,0.02]
[1758807815344,3.0,3962.6,3962.1,0.02]
[1758807815579,2.52378668,3962.3,3962.1,0.02]
[1758807815750,6.579995,3962.3,3962.1,0.02]
[1758807815955,18.163038,3962.3,3962.1,0.02]
[1758807816278,0.39589276,3963.2,3962.1,0.02]
[1758807816575,3.0,3963.0,3962.3,2.52378467]
[1758807816782,3.0,3962.8,3962.2,0.006]
[1758807816985,3.0,3962.6,3962.2,0.006]
[1758807817294,0.2272,3962.9,3962.2,0.006]
[1758807817295,9.24335,3962.5,3962.2,0.006]
[1758807817445,3.550109,3962.4,3962.2,0.006]
[1758807817645,6.827,3962.3,3962.2,0.006]
[1758807817844,11.303369,3962.3,3962.2,0.006]
[1758807818092,12.193348,3962.3,3962.2,0.006]
[1758807818582,15.886948,3962.3,3962.2,0.006]
[1758807818944,18.80667191,3962.3,3962.2,0.006]
[1758807819150,29.73710223,3962.3,3962.2,0.006]
[1758807819484,23.04959723,3962.3,3962.2,0.006]
[1758807819655,23.27679723,3962.3,3962.2,0.006]
[1758807820095,23.27679723,3962.3,3961.1,0.02]
[1758807820096,25.080387,3962.2,3961.1,0.02]
[1758807820264,3.0,3961.1,3960.1,0.02]
[1758807820612,3.0,3960.9,3960.1,0.02]
[1758807820754,5.263431,3960.8,3960.1,0.02]
[1758807820954,6.83,3960.7,3960.1,2.545129]
[1758807821155,0.6936,3961.0,3960.1,0.02]
[1758807821374,0.2496,3961.9,3960.2,0.45355124]
[1758807821686,11.439628,3961.8,3960.3,0.2428]
[1758807821864,9.58420163,3963.0,3960.3,0.2428]
[1758807821865,16.0857,3961.7,3960.3,0.2428]
[1758807822181,9.52125,3961.6,3961.4,0.1256]
[1758807822479,9.52125,3961.6,3960.1,0.02]
[1758807822480,8.671893,3961.5,3960.1,0.2628]
[1758807822683,7.602811,3961.4,3960.1,0.2628]
[1758807822849,9.692051,3961.3,3961.2,2.52448752]
[1758807823049,19.97685263,3961.3,3960.1,0.02]
[1758807823246,3.3960389,3961.1,3960.1,0.02]
[1758807823450,3.3960389,3961.1,3959.1,2.54582318]
[1758807823451,3.0,3960.9,3959.4,0.4283]
[1758807823696,3.0,3960.7,3959.5,0.02525571]
[1758807823853,13.486413,3960.6,3959.5,0.02525571]
[1758807824052,17.232598,3960.5,3959.1,0.02]
[1758807824290,17.232598,3960.5,3957.2,2.103]
[1758807824291,3.0,3960.3,3959.0,0.2525]
[1758807824460,3.0,3960.3,3956.0,8.889]
[1758807824461,3.0,3960.1,3957.6,0.2428]
[1758807824797,3.0,3959.9,3957.0,2.52710905]
[1758807825000,3.0,3959.7,3957.2,0.2428]
[1758807825166,3.0,3959.5,3956.7,0.45852291]
[1758807825368,3.0,3959.1,3956.7,0.45852291]
[1758807825686,3.0,3958.1,3956.7,0.42852291]
[1758807826012,2.52587235,3959.1,3955.1,0.2628]
[1758807826013,3.0,3956.7,3955.1,0.02]
[1758807826314,3.0,3956.5,3955.1,0.02]
[1758807826514,16.099984,3956.4,3955.1,0.02]
[1758807826797,0.2496,3957.0,3955.1,0.02]
[1758807826965,13.437065,3957.0,3955.2,0.2428]
[1758807827171,3.564079,3956.9,3955.3,0.4283]
[1758807827381,0.2496,3958.6,3955.4,0.2428]
[1758807827605,15.111331,3958.5,3955.5,0.45358125]
[1758807827765,15.111331,3958.5,3955.7,0.792]
[1758807827766,0.39639155,3958.3,3955.7,0.792]
[1758807828113,0.451,3959.6,3956.0,2.52780586]
[1758807828429,0.39630773,3960.3,3956.5,3.792]
[1758807828591,13.428116,3960.2,3956.6,13.10637422]
[1758807828794,11.678341,3960.1,3958.0,0.792]
[1758807829004,0.451,3960.1,3958.1,0.2428]
[1758807829179,0.451,3960.8,3958.3,0.792]
[1758807829516,0.84710271,3962.1,3958.6,3.0]
[1758807829822,17.844399,3962.0,3958.7,7.7101]
[1758807830118,11.159081,3961.9,3959.7,0.792]
[1758807830276,1.24088349,3964.9,3962.1,2.52391408]
[1758807830277,0.39601633,3962.2,3962.1,2.52391408]
[1758807830482,2.105,3962.7,3961.5,0.2428]
[1758807830822,6.578,3964.3,3960.4,2.52499747]
[1758807830823,3.237606,3961.5,3960.4,2.52499747]
[1758807830987,26.654387,3961.4,3959.7,0.2428]
[1758807831191,26.654387,3961.4,3958.5,9.578]
[1758807831192,2.8545,3959.7,3958.1,0.4283]
[1758807831382,20.712906,3959.6,3957.2,0.75922843]
[1758807831584,3.0,3959.4,3957.2,0.75922843]
[1758807831790,3.0,3959.2,3957.0,0.2428]
[1758807831990,29.851987,3959.3,3956.2,0.75986495]
[1758807831991,3.0,3959.0,3956.2,0.75986495]
[1758807832193,2.105,3958.3,3956.2,0.75986495]
[1758807832415,0.1256,3956.3,3955.1,0.1464]
[1758807832736,3.0,3955.9,3955.1,0.02]
[1758807832925,25.99055081,3956.2,3954.1,0.02]
[1758807832926,27.766987,3955.8,3954.1,0.02]
[1758807833126,7.096177,3955.7,3954.2,0.02528956]
[1758807833437,2.105,3956.3,3954.3,0.69638892]
[1758807833633,15.237391,3956.2,3955.3,2.52823222]
[1758807833799,2.105,3956.1,3954.3,0.6711]
[1758807834001,12.514347,3956.1,3954.2,2.52895655]
[1758807834204,12.514347,3956.1,3954.1,0.02]
[1758807834205,3.0,3955.9,3954.1,0.02]
[1758807834519,2.830127,3955.8,3954.2,0.02528956]
[1758807834727,0.7006,3957.1,3954.6,0.792]
[1758807834882,2.105,3957.0,3954.8,0.792]
[1758807835086,6.418451,3956.9,3954.9,0.6711]
[1758807835316,0.2496,3957.7,3956.4,2.52754803]
[1758807835317,12.279226,3956.8,3956.4,2.52754803]
[1758807835502,4.989,3956.8,3955.8,2.52791303]
[1758807835814,0.451,3958.1,3955.6,0.2428]
[1758807835815,10.555294,3956.7,3955.6,0.2428]
[1758807836018,0.34818481,3958.0,3955.7,3.34527754]
[1758807836244,5.94580125,3960.8,3956.0,0.792]
[1758807836245,6.334406,3957.9,3956.0,0.792]
[1758807836440,0.451,3958.8,3956.2,0.792]
[1758807836604,15.959632,3958.7,3956.5,2.52748641]
[1758807836810,18.9717695,3958.6,3955.6,0.792]
[1758807837042,22.080387,3958.5,3955.8,0.792]
[1758807837245,11.746045,3958.4,3956.0,3.31980227]
[1758807837429,22.531387,3958.3,3956.3,2.52757551]
[1758807837630,25.780987,3958.2,3955.1,1.0348]
[1758807837864,0.39641971,3957.9,3954.7,0.792]
[1758807838022,3.0,3957.7,3954.6,2.52870075]
[1758807838206,28.13917181,3957.8,3954.9,2.52850893]
[1758807838207,3.0,3957.5,3954.9,2.52850893]
[1758807838406,3.0,3957.5,3954.8,0.2428]
[1758807838407,3.0,3957.3,3954.8,0.2428]
[1758807838647,22.080387,3957.2,3955.5,2.52812297]
[1758807838811,3.0,3957.0,3954.4,2.106]
[1758807839008,3.0,3956.8,3954.5,0.69638764]
[1758807839213,3.0,3956.6,3954.5,0.2428]
[1758807839440,12.998695,3956.5,3954.5,0.2428]
[1758807839608,2.106,3956.4,3955.0,2.52841365]
[1758807839805,0.2496,3957.4,3956.3,2.52761418]
[1758807840010,3.0,3957.2,3956.2,2.52762818]
[1758807840247,18.166078,3957.3,3955.1,0.2428]
[1758807840248,3.0,3957.0,3955.1,0.2428]
[1758807840431,15.509135,3956.9,3955.1,0.2428]
[1758807840632,0.451,3957.3,3955.6,2.52806148]
[1758807840850,0.2496,3958.8,3955.8,0.792]
[1758807841050,2.65622786,3960.5,3956.3,0.792]
[1758807841051,2.106,3959.1,3956.3,0.792]
[1758807841210,1.755,3959.0,3956.5,3.792]
[1758807841406,0.15110662,3959.6,3959.5,2.52557141]
[1758807841969,0.451,3961.1,3959.5,0.26805571]
[1758807841974,0.511,3960.7,3959.5,0.26805571]
[1758807842109,1.09677346,3962.9,3959.6,7.374]
[1758807842473,2.106,3962.8,3959.7,3.69875443]
[1758807842615,0.6606,3964.1,3962.6,0.1256]
[1758807842965,10.808413,3964.0,3961.4,0.792]
[1758807843161,0.6606,3964.1,3961.3,0.6735]
[1758807843162,5.77676,3963.9,3961.3,0.6735]
[1758807843314,11.07475,3963.8,3961.5,2.106]
[1758807843642,11.07475,3963.8,3963.7,2.52289527]
[1758807843643,7.143,3963.8,3963.7,2.52289527]
[1758807843843,10.006742,3963.8,3962.7,2.52350967]
[1758807844024,0.234,3964.7,3962.4,0.2396]
[1758807844219,0.234,3964.7,3964.6,2.52232255]
[1758807844220,0.001,3964.7,3964.6,2.52232255]
[1758807844423,0.001,3964.7,3963.7,0.2396]
[1758807844652,0.001,3964.7,3964.6,2.52232255]
[1758807845062,0.001,3964.7,3963.7,2.76246725]
[1758807845063,0.001,3964.7,3963.7,0.2396]
[1758807845265,0.001,3964.7,3963.8,0.02522831]
[1758807845467,3.4989,3964.6,3963.0,2.105]
[1758807845667,0.001,3964.7,3964.6,2.52232255]
[1758807845870,0.001,3964.7,3963.1,0.6735]
[1758807846043,0.001,3964.7,3963.6,2.52295892]
[1758807846252,0.001,3964.7,3964.6,2.52232255]
[1758807846643,0.001,3964.7,3963.8,0.2396]
[1758807846973,2.703714,3964.6,3963.0,0.2396]
[1758807847174,2.037542,3964.5,3963.0,0.2396]
[1758807847346,0.6606,3964.4,3962.1,0.2396]
[1758807847548,0.6606,3964.4,3962.2,0.0252385]